bitfinex-derivatives/quotes_ETHF0:USTF0_20240925
["timestamp","ask_amount","ask_price","bid_price","bid_amount"]
[1727282908382,0.38433,2601.8,2601.6,0.38435]
[1727282908583,3.606,2602.0,2601.8,0.38432]
[1727282908781,3.606,2602.0,2601.9,0.38431]
[1727282908977,0.3982,2602.0,2601.9,0.38431]
[1727282909985,0.7825,2602.0,2601.8,0.38432]
[1727282910286,0.38431,2601.9,2601.7,3.98253]
[1727282910478,3.07431,2601.9,2601.7,0.38433]
[1727282910980,2.69,2601.9,2601.4,0.7816]
[1727282911182,3.07435,2601.7,2601.5,0.38436]
[1727282911384,2.69,2601.7,2601.4,0.7816]
[1727282911577,3.07435,2601.7,2601.5,0.38437]
[1727282912076,2.69,2601.7,2601.4,0.7816]
[1727282912277,2.69,2601.7,2601.3,3.579]
[1727282912278,5.8978,2601.7,2601.3,3.579]
[1727282912584,6.2667,2601.7,2601.6,0.38435]
[1727282912782,6.2667,2601.7,2601.4,0.4049]
[1727282912987,6.2667,2601.7,2601.6,0.38435]
[1727282913182,3.0589,2601.7,2601.6,0.38435]
[1727282913377,3.0589,2601.7,2601.4,0.4049]
[1727282913578,3.44324,2601.7,2601.5,0.38436]
[1727282913973,3.0589,2601.7,2601.6,0.38435]
[1727282914173,3.07432,2601.9,2601.7,0.38433]
[1727282914379,0.38433,2601.8,2601.4,0.4049]
[1727282914580,3.07432,2601.9,2601.7,0.38433]
[1727282914979,0.38433,2601.8,2601.6,0.38434]
[1727282915180,0.38433,2601.8,2601.4,0.4049]
[1727282915389,3.07435,2601.7,2601.5,0.38436]
[1727282915879,0.3798,2601.6,2601.5,0.38436]
[1727282917388,2.69,2601.9,2601.4,1.36586]
[1727282917687,0.38433,2601.8,2601.4,0.4049]
[1727282918389,0.38433,2601.8,2601.7,0.38434]
[1727282918589,3.46622,2601.9,2601.7,0.38434]
[1727282918979,3.0819,2601.9,2601.8,0.38433]
[1727282919588,9.78359,2602.2,2602.0,0.38429]
[1727282919589,3.2078,2602.2,2602.0,0.38429]
[1727282919984,3.0819,2602.1,2602.0,0.38429]
[1727282920999,0.3843,2602.0,2601.7,0.3758]
[1727282921286,2.69,2601.8,2601.6,0.77225]
[1727282921486,0.38437,2601.5,2601.4,1.17378]
[1727282921789,3.07437,2601.5,2601.4,1.17378]
[1727282922088,2.69,2601.5,2601.4,1.17378]
[1727282922383,0.38439,2601.4,2601.2,0.3879]
[1727282922585,3.0744,2601.3,2601.0,3.2078]
[1727282922785,2.69,2601.1,2601.0,0.38444]
[1727282928583,3.07441,2601.3,2601.2,0.38441]
[1727282929092,3.07441,2601.3,2600.9,0.96115]
[1727282929093,0.38442,2601.2,2601.1,0.38442]
[1727282930585,1.16822,2601.2,2601.1,0.38442]
[1727282931294,0.38439,2601.4,2601.3,0.3844]
[1727282932385,3.45147,2601.5,2601.4,0.38438]
[1727282932794,3.0671,2601.5,2601.3,0.3758]
[1727282932993,3.45147,2601.5,2601.4,0.38438]
[1727282933695,3.48105,2601.7,2601.3,0.3758]
[1727282933891,6.2947,2601.8,2601.7,0.38434]
[1727282934089,3.0869,2601.8,2601.7,0.38434]
[1727282935598,3.47123,2601.8,2601.7,0.38434]
[1727282936295,3.47123,2601.8,2601.5,0.38436]
[1727282936296,0.38436,2601.6,2601.5,0.38436]
[1727282937001,0.76736,2601.6,2601.5,0.38436]
[1727282937296,0.38437,2601.5,2601.4,0.38437]
[1727282937499,0.76737,2601.6,2601.5,0.38437]
[1727282938598,0.383,2601.6,2601.5,0.38437]
[1727282938798,2.69,2601.7,2601.6,0.38435]
[1727282939199,3.07434,2601.7,2601.6,0.38435]
[1727282939504,1.90407184,2601.8,2601.7,0.38434]
[1727282939505,4.59407184,2601.8,2601.7,0.38434]
[1727282940003,4.97840184,2601.8,2601.7,0.38434]
[1727282940200,4.59407184,2601.8,2601.7,0.38434]
[1727282940401,4.97840184,2601.8,2601.7,0.38434]
[1727282941090,0.38434,2601.7,2601.6,0.38434]
[1727282941495,3.47124,2601.8,2601.7,0.38434]
[1727282941704,0.38435,2601.7,2601.6,0.38434]
[1727282942004,0.38438,2601.5,2601.4,0.38438]
[1727282942194,2.69,2601.5,2601.3,1.15799]
[1727282942504,0.38438,2601.4,2601.3,1.15799]
[1727282942806,4.58196934,2601.5,2601.4,0.38438]
[1727282943100,0.38438,2601.4,2601.3,1.15799]
[1727282943302,1.89197934,2601.4,2601.3,1.15799]
[1727282943604,0.3844,2601.3,2601.2,0.7638]
[1727282943807,4.94949934,2601.3,2601.2,0.7638]
[1727282944204,5.45147888,2601.3,2601.2,0.7638]
[1727282944504,5.45147888,2601.3,2601.2,0.3844]
[1727282944701,5.45147888,2601.3,2601.1,3.59222]
[1727282944702,0.38441,2601.2,2601.1,3.59222]
[1727282944899,2.39398888,2601.2,2601.1,3.59222]
[1727282945100,2.39398888,2601.2,2601.1,0.38442]
[1727282945294,2.39398888,2601.2,2601.0,0.7577]
[1727282945295,6.52845111,2601.3,2601.0,0.7577]
[1727282945593,4.70410984,2601.1,2600.9,0.76485]
[1727282945898,4.70410984,2601.1,2600.8,3.2078]
[1727282945899,2.01410984,2601.0,2600.8,0.38447]
[1727282946202,2.69,2600.9,2600.8,0.38447]
[1727282946408,2.69,2600.9,2600.7,2.15336425]
[1727282946409,3.46147,2600.9,2600.7,2.15336425]
[1727282946803,3.46147,2600.9,2600.8,0.38447]
[1727282947415,3.077,2600.9,2600.8,0.38447]
[1727282947801,0.387,2600.9,2600.8,0.38447]
[1727282948001,2.69,2601.0,2600.9,0.38446]
[1727282948505,3.07444,2601.0,2600.9,0.38446]
[1727282949400,2.69,2601.0,2600.9,0.38446]
[1727282950116,0.3902,2601.2,2601.1,0.38443]
[1727282950407,0.3902,2601.2,2600.9,1.00188425]
[1727282950408,3.0802,2601.2,2600.9,1.00188425]
[1727282950612,0.38449,2600.7,2600.6,4.59417425]
[1727282950798,0.38449,2600.7,2600.6,1.38637425]
[1727282951004,0.3845,2600.6,2600.5,1.38639425]
[1727282951304,0.7546,2600.6,2600.5,0.38451]
[1727282951610,0.3701,2600.6,2600.5,0.38451]
[1727282951807,3.0601,2600.6,2600.4,2.17140425]
[1727282952108,3.44461,2600.6,2600.5,0.38452]
[1727282952415,0.38452,2600.5,2600.4,0.38452]
[1727282952808,0.38452,2600.5,2600.2,3.2078]
[1727282952809,4.02137,2600.6,2600.2,3.2078]
[1727282953005,3.07454,2600.4,2600.3,0.38454]
[1727282953318,0.38455,2600.3,2600.2,3.2078]
[1727282953703,4.23015,2600.3,2600.2,3.2078]
[1727282953904,7.0534,2600.3,2599.9,0.3695]
[1727282954211,3.44764,2600.4,2600.2,0.38455]
[1727282954619,0.38455,2600.3,2600.1,0.38457]
[1727282954915,3.44763,2600.4,2600.3,0.38455]
[1727282955102,2.69,2600.4,2600.3,0.38455]
[1727282955911,2.69,2600.4,2600.3,0.76565]
[1727282957213,3.07453,2600.4,2600.2,0.3942]
[1727282957509,3.07453,2600.4,2600.2,0.38455]
[1727282958412,3.07454,2600.4,2600.2,0.38455]
[1727282958615,0.38455,2600.3,2600.2,0.38455]
[1727282959019,0.38455,2600.3,2600.1,0.38456]
[1727282959315,3.07454,2600.4,2600.2,0.38455]
[1727282959818,2.69,2600.4,2600.3,0.38455]
[1727282961613,3.0601,2600.6,2600.5,0.38452]
[1727282962122,0.089,2601.2,2600.7,0.96123]
[1727282962306,1.1567,2601.3,2601.1,0.38443]
[1727282962510,3.07441,2601.2,2601.1,0.38443]
[1727282962811,3.07441,2601.2,2600.8,5.33868]
[1727282962812,0.38444,2601.1,2600.9,0.38445]
[1727282963011,3.07444,2601.0,2600.8,0.799]
[1727282963412,2.69,2601.0,2600.8,0.799]
[1727282963618,3.07446,2601.0,2600.8,1.18347]
[1727282964122,2.69,2601.0,2600.9,0.38446]
[1727282964609,2.69,2601.2,2601.1,0.38441]
[1727282964826,0.7723,2601.3,2601.2,0.38441]
[1727282965018,1.1567,2601.3,2600.9,0.96115]
[1727282965214,1.15671,2601.3,2601.1,0.38442]
[1727282965514,0.7723,2601.3,2601.2,0.38441]
[1727282965708,0.4023,2601.3,2601.2,0.38441]
[1727282965916,3.07438,2601.4,2601.3,0.3844]
[1727282966121,3.07438,2601.4,2601.0,0.3836]
[1727282966308,3.07438,2601.4,2601.2,0.3844]
[1727282967411,0.3844,2601.3,2601.2,0.3844]
[1727282967618,2.69,2601.4,2601.2,0.3844]
[1727282968014,2.69,2601.4,2601.3,0.3844]
[1727282968719,2.69,2601.4,2601.2,0.38441]
[1727282968720,3.07439,2601.4,2601.2,0.38441]
[1727282968915,2.69,2601.4,2601.3,0.3844]
[1727282969108,3.07438,2601.4,2601.3,0.3844]
[1727282969523,2.69,2601.4,2601.3,0.3844]
[1727282969710,3.07438,2601.4,2601.3,0.3844]
[1727282970109,2.69,2601.4,2601.3,0.3844]
[1727282970313,2.69,2601.4,2601.2,0.3844]
[1727282970516,2.69,2601.4,2601.3,0.3844]
[1727282970717,0.4064,2601.5,2601.4,0.38438]
[1727282970920,0.4064,2601.5,2601.3,0.3844]
[1727282970921,0.38439,2601.4,2601.3,0.3844]
[1727282971127,2.69,2601.3,2601.2,0.38441]
[1727282972912,3.0744,2601.3,2601.2,0.38441]
[1727282975824,9.7418,2601.3,2600.8,0.799]
[1727282976119,1.5106813,2601.4,2600.8,0.799]
[1727282976120,2.69,2601.1,2600.8,0.799]
[1727282976313,4.5851113,2601.1,2601.0,0.38444]
[1727282976616,1.33608,2601.4,2601.1,0.38443]
[1727282976617,1.8951013,2601.2,2601.1,0.38443]
[1727282977417,0.38443,2601.1,2600.8,4.0068]
[1727282977616,1.5106813,2601.2,2600.8,4.0068]
[1727282977926,0.38446,2600.9,2600.8,3.2078]
[1727282978224,1.5106813,2601.2,2600.9,0.38446]
[1727282978412,1.5106813,2601.3,2601.2,0.38441]
[1727282978619,1.5106813,2601.5,2601.4,0.38438]
[1727282978916,1.9077813,2601.6,2601.5,0.38437]
[1727282979113,3.0871,2601.6,2601.5,0.38437]
[1727282979509,4.5977813,2601.6,2601.5,0.38437]
[1727282980425,3.0871,2601.6,2601.5,0.38437]
[1727282983620,1.5106813,2601.7,2601.6,0.38435]
[1727282984224,1.8950113,2601.8,2601.7,0.38434]
[1727282984422,0.38433,2601.8,2601.7,0.38434]
[1727282989334,0.38433,2601.8,2601.5,0.7707]
[1727282989335,0.38435,2601.7,2601.6,0.38434]
[1727282990834,1.34524,2601.6,2601.5,0.7707]
[1727282991041,0.38441,2601.3,2601.2,0.3844]
[1727282991336,0.38444,2601.0,2600.9,0.3726]
[1727282991542,0.38444,2601.0,2600.6,1.00188425]
[1727282991543,0.38447,2600.8,2600.7,0.38448]
[1727282991740,0.75497,2600.9,2600.8,0.38447]
[1727282992130,0.3705,2600.9,2600.8,0.38447]
[1727282992331,0.75496,2600.9,2600.8,0.38447]
[1727282992628,0.3705,2600.9,2600.8,0.38447]
[1727282992826,0.75496,2600.9,2600.8,0.38447]
[1727282993031,0.3705,2600.9,2600.8,0.38447]
[1727282993232,0.75496,2600.9,2600.8,0.38447]
[1727282993633,0.38447,2600.8,2600.7,3.59228]
[1727282993836,0.38447,2600.8,2600.7,3.2078]
[1727282994135,3.07447,2600.8,2600.7,3.2078]
[1727282994332,3.07447,2600.8,2600.7,3.59229]
[1727282995034,2.69,2600.8,2600.7,3.59229]
[1727282995542,0.75496,2600.9,2600.8,0.38447]
[1727282995740,3.65106,2601.2,2600.9,0.38445]
[1727282996039,0.38444,2601.0,2600.9,0.38445]
[1727282996245,3.0854,2601.2,2601.0,0.38444]
[1727282996246,0.38444,2601.1,2601.0,0.38444]
[1727282996536,0.77982,2601.2,2601.1,0.38443]
[1727282996737,0.3954,2601.2,2601.1,0.38443]
[1727282997338,0.77981,2601.2,2601.1,0.38443]
[1727282998944,0.3954,2601.2,2601.1,0.38443]
[1727282999243,3.2078,2601.4,2601.3,0.3844]
[1727283000037,3.59218,2601.4,2601.3,0.3844]
[1727283000740,1.5106813,2601.4,2601.3,0.3844]
[1727283000946,1.9138813,2601.5,2601.4,0.38438]
[1727283001332,2.2982513,2601.5,2601.4,0.38438]
[1727283001834,1.5106813,2601.5,2601.4,0.38438]
[1727283002042,1.5106813,2601.6,2601.5,0.38437]
[1727283003248,1.5106813,2601.6,2601.5,1.3453]
[1727283003547,1.5106813,2601.6,2601.4,0.96095]
[1727283003548,2.2982113,2601.8,2601.7,0.38434]
[1727283003943,1.9138813,2601.8,2601.7,0.38434]
[1727283004143,1.5106813,2601.8,2601.7,4.22754]
[1727283004341,1.5106813,2601.9,2601.8,0.38433]
[1727283004648,1.5106813,2602.0,2601.9,0.38431]
[1727283005150,1.5106813,2602.0,2601.8,1.153]
[1727283005151,1.5077293,2602.0,2601.8,1.153]
[1727283005346,1.5077293,2602.0,2601.9,0.38431]
[1727283005654,1.8920193,2602.1,2602.0,0.3843]
[1727283005834,0.38429,2602.1,2602.0,0.3843]
[1727283006645,0.3722,2602.2,2602.1,0.38428]
[1727283008147,0.77985,2602.4,2602.3,0.38425]
[1727283009148,0.77984,2602.4,2602.3,0.38425]
[1727283009949,0.78333,2602.5,2602.4,0.38424]
[1727283010147,0.78333,2602.5,2602.0,0.96073]
[1727283010353,0.38425,2602.4,2602.3,0.38424]
[1727283010550,0.38427,2602.2,2602.1,0.38427]
[1727283010753,3.0891,2602.5,2601.9,3.2078]
[1727283010754,3.07426,2602.3,2602.2,0.38427]
[1727283011451,0.38429,2602.1,2602.0,0.38429]
[1727283011750,0.76188,2602.2,2602.1,0.38428]
[1727283013656,3.27182111,2602.2,2602.1,0.38428]
[1727283013857,3.27182111,2602.2,2601.8,2.11381]
[1727283013858,0.38431,2602.0,2601.9,0.3843]
[1727283014152,2.39348541,2602.0,2601.9,0.3843]
[1727283014455,0.38431,2601.9,2601.8,1.53731]
[1727283015542,3.35426541,2601.9,2601.8,1.53733]
[1727283015750,2.00917541,2601.9,2601.5,0.96093]
[1727283015954,1.5068866,2601.7,2601.6,1.34524]
[1727283016450,1.5068866,2601.8,2601.7,1.3452]
[1727283017652,1.5068866,2601.8,2601.7,0.38434]
[1727283017853,1.5068866,2601.8,2601.7,1.3452]
[1727283018657,1.5068866,2601.9,2601.8,1.34515]
[1727283019051,1.5068866,2602.0,2601.9,1.34509]
[1727283019255,1.5068866,2602.2,2602.1,0.38428]
[1727283019452,1.5068866,2602.3,2602.2,1.34494]
[1727283019658,2.77400541,2602.5,2602.4,0.38424]
[1727283020260,2.77400541,2602.5,2602.3,0.38425]
[1727283020261,0.38426,2602.4,2602.3,0.38425]
[1727283020452,2.3926096,2602.4,2602.3,0.38425]
[1727283021261,0.38426,2602.3,2602.2,0.38426]
[1727283021458,0.38426,2602.3,2602.1,0.18]
[1727283021459,0.38427,2602.2,2602.1,0.56427]
[1727283021665,0.38427,2602.2,2602.1,0.18]
[1727283021959,1.34494,2602.2,2602.1,0.18]
[1727283022164,1.72044,2602.2,2602.1,0.18]
[1727283022760,2.68111,2602.2,2602.1,0.18]
[1727283024164,1.72044,2602.2,2602.1,0.18]
[1727283026166,6.52431,2602.2,2602.1,0.18]
[1727283026366,5.56364,2602.2,2602.1,0.18]
[1727283026966,1.72044,2602.2,2602.1,0.18]
[1727283027168,5.56364,2602.2,2602.1,0.18]
[1727283027366,1.72044,2602.2,2602.1,0.18]
[1727283027762,5.56364,2602.2,2602.1,0.18]
[1727283028061,1.72044,2602.2,2602.1,0.18]
[1727283028267,6.52431,2602.2,2602.1,0.18]
[1727283028461,2.68111,2602.2,2602.1,0.18]
[1727283028657,6.52431,2602.2,2602.1,0.18]
[1727283029161,5.56364,2602.2,2602.1,0.18]
[1727283029462,6.52431,2602.2,2602.1,0.18]
[1727283029770,7.5719896,2602.2,2602.1,0.18]
[1727283030065,3.7287896,2602.2,2602.1,0.18]
[1727283030260,13.5558196,2602.2,2601.1,4.16885]
[1727283030466,0.38439,2601.4,2601.3,0.38438]
[1727283030665,0.38438,2601.5,2601.4,0.38437]
[1727283031057,0.75316,2601.6,2601.5,0.38437]
[1727283031255,2.96985394,2601.8,2601.6,0.38434]
[1727283031256,1.50675296,2601.8,2601.6,0.38434]
[1727283031464,1.50675296,2602.0,2601.9,0.38431]
[1727283031770,1.89104296,2602.1,2602.0,0.3843]
[1727283032062,0.38432,2601.9,2601.8,0.38432]
[1727283032462,0.38432,2601.9,2601.8,4.22752]
[1727283032978,1.89104296,2602.1,2602.0,0.3843]
[1727283033271,1.89095461,2602.1,2602.0,0.3843]
[1727283033456,0.38429,2602.1,2602.0,0.3843]
[1727283034062,0.3843,2602.0,2601.9,0.7631]
[1727283034664,1.89095461,2602.1,2602.0,0.3843]
[1727283035059,1.50666461,2602.1,2602.0,0.3843]
[1727283035264,1.50666461,2602.2,2602.1,0.38428]
[1727283035563,0.38429,2602.1,2602.0,0.38428]
[1727283035866,0.3843,2602.0,2601.9,0.76311]
[1727283036569,0.38431,2601.9,2601.8,0.75722]
[1727283036760,0.78101,2601.9,2601.8,0.75723]
[1727283036958,0.3967,2601.9,2601.8,4.60043]
[1727283037165,0.38427,2602.2,2602.1,0.38427]
[1727283037470,0.96057,2602.5,2602.0,3.65075]
[1727283037770,0.96057,2602.5,2602.2,0.38425]
[1727283037771,0.38426,2602.3,2602.2,0.38425]
[1727283038476,0.78093,2602.5,2602.4,0.38424]
[1727283038868,0.38424,2602.4,2602.3,0.77714]
[1727283039569,0.78093,2602.5,2602.4,0.38424]
[1727283039873,1.89084461,2602.9,2602.5,0.96056]
[1727283040173,1.89084461,2602.9,2602.8,0.38418]
[1727283040174,0.38418,2602.9,2602.8,0.38418]
[1727283040763,0.38415,2603.0,2602.9,0.38415]
[1727283040964,0.38415,2603.0,2602.9,0.38416]
[1727283041366,0.75614,2603.1,2603.0,0.38415]
[1727283041570,0.38415,2603.0,2602.9,0.38415]
[1727283041771,0.75615,2603.1,2602.8,2.69]
[1727283041967,0.372,2603.1,2603.0,0.38415]
[1727283042268,1.50666461,2603.4,2603.3,0.3841]
[1727283042469,0.38408,2603.5,2603.3,0.3841]
[1727283042870,0.38409,2603.4,2603.2,0.38411]
[1727283043069,0.3758,2603.6,2603.1,3.2078]
[1727283043273,1.33597,2603.6,2603.1,3.59192]
[1727283043478,0.3841,2603.3,2603.2,0.38412]
[1727283043677,0.38412,2603.2,2603.1,3.59192]
[1727283043979,0.38412,2603.2,2603.1,3.2078]
[1727283044277,0.38411,2603.3,2603.1,3.59193]
[1727283044570,0.3807,2603.2,2603.1,3.59193]
[1727283044775,1.50666461,2603.4,2603.1,3.2078]
[1727283045074,2.38970394,2603.5,2603.1,3.2078]
[1727283045075,1.50666461,2603.5,2603.4,0.38409]
[1727283045462,1.88246461,2603.6,2603.5,0.38407]
[1727283045961,0.3758,2603.6,2603.5,0.38407]
[1727283046166,0.3758,2603.6,2603.4,0.38408]
[1727283046366,1.88246461,2603.6,2603.1,3.2078]
[1727283046565,1.88246461,2603.6,2603.1,3.59192]
[1727283046566,0.38411,2603.3,2603.1,3.59192]
[1727283046779,0.75372,2603.2,2603.1,3.2078]
[1727283046976,1.14042,2603.2,2603.1,3.2078]
[1727283047275,0.7563,2603.2,2603.1,3.59193]
[1727283047476,0.3696,2603.2,2603.1,3.59193]
[1727283047768,1.89336461,2603.5,2603.3,0.3841]
[1727283047769,2.27744461,2603.5,2603.3,0.3841]
[1727283047972,2.27744461,2603.5,2603.1,3.2078]
[1727283047973,0.3867,2603.5,2603.2,0.38411]
[1727283048170,0.3867,2603.5,2603.3,0.38409]
[1727283048367,0.38409,2603.4,2603.3,0.38409]
[1727283048576,0.3867,2603.5,2603.2,0.38412]
[1727283048774,0.3841,2603.4,2603.2,0.38412]
[1727283049072,0.3841,2603.4,2603.3,0.3841]
[1727283049763,5.10626461,2603.6,2603.4,0.38409]
[1727283049963,5.10626461,2603.6,2603.0,3.2078]
[1727283049964,0.3918,2603.6,2603.0,3.2078]
[1727283050271,0.38409,2603.5,2603.3,0.3841]
[1727283050682,1.35197,2603.6,2603.2,0.38411]
[1727283050973,0.3841,2603.4,2603.2,0.38411]
[1727283051473,0.3841,2603.4,2603.3,0.3841]
[1727283051774,3.2078,2603.5,2603.3,0.3841]
[1727283051775,3.59188,2603.5,2603.3,0.3841]
[1727283051980,2.50643052,2603.4,2603.3,0.3841]
[1727283052276,0.38409,2603.4,2603.2,0.38411]
[1727283052473,2.5064894,2603.3,2603.0,0.4012]
[1727283052773,2.5064894,2603.3,2603.0,0.78534]
[1727283052774,2.00515221,2603.1,2603.0,0.78534]
[1727283052970,2.00515221,2603.1,2603.0,0.78535]
[1727283054081,2.38928221,2603.1,2603.0,0.78535]
[1727283054375,2.00515221,2603.1,2603.0,0.78535]
[1727283054570,2.38928221,2603.1,2603.0,0.78535]
[1727283055277,2.00515221,2603.1,2603.0,1.16735]
[1727283055582,2.38928221,2603.1,2603.0,0.382]
[1727283055777,2.00515221,2603.1,2603.0,0.382]
[1727283055977,2.00515221,2603.1,2603.0,0.76615]
[1727283056283,2.38928221,2603.1,2603.0,1.16455]
[1727283057169,2.00515221,2603.1,2603.0,1.16455]
[1727283057877,2.38165221,2603.2,2603.1,0.38413]
[1727283058374,0.3765,2603.2,2603.1,0.38413]
[1727283058570,2.38056729,2603.2,2603.1,0.38413]
[1727283058771,6.08442934,2603.6,2603.1,0.38413]
[1727283058772,5.03813,2603.7,2603.1,5.19504]
[1727283058969,0.4053,2603.6,2603.5,0.38407]
[1727283060374,0.78936,2603.6,2603.5,0.38407]
[1727283060872,0.38407,2603.5,2603.4,0.3706]
[1727283061174,0.38407,2603.5,2603.3,0.3794]
[1727283061175,0.38408,2603.5,2603.3,0.3841]
[1727283061383,0.38408,2603.5,2603.4,0.38409]
[1727283061776,0.38408,2603.5,2603.2,3.2078]
[1727283061777,0.78937,2603.6,2603.5,0.38407]
[1727283061973,0.4053,2603.6,2603.5,0.38407]
[1727283062573,0.38409,2603.4,2603.3,0.3841]
[1727283062888,0.38409,2603.4,2603.3,0.38409]
[1727283063293,0.3841,2603.3,2603.2,3.59191]
[1727283063477,0.38412,2603.2,2603.1,1.54182]
[1727283063677,0.38412,2603.2,2603.0,0.382]
[1727283063678,0.38413,2603.1,2603.0,0.382]
[1727283064081,0.38413,2603.1,2603.0,0.76615]
[1727283065288,0.38413,2603.1,2603.0,0.382]
[1727283065878,0.38413,2603.1,2603.0,0.76615]
[1727283066077,0.38412,2603.3,2603.0,3.072]
[1727283066278,0.38412,2603.2,2603.0,3.072]
[1727283066489,0.78481,2603.3,2603.2,0.38412]
[1727283066881,2.78887729,2603.3,2603.2,0.38412]
[1727283069883,2.00406729,2603.3,2603.2,0.38412]
[1727283070083,2.00406729,2603.3,2603.2,0.75752]
[1727283070388,2.38816729,2603.4,2603.3,0.3841]
[1727283070583,0.3841,2603.4,2603.3,0.3841]
[1727283071880,1.34447,2603.1,2603.0,0.382]
[1727283072296,4.09889894,2603.1,2603.0,0.382]
[1727283072586,2.09447,2603.1,2603.0,0.382]
[1727283072787,9.58641,2603.1,2603.0,0.382]
[1727283073492,5.93607,2603.1,2603.0,0.382]
[1727283073691,0.38418,2602.9,2602.8,0.38417]
[1727283073887,0.38418,2602.8,2602.7,0.76998]
[1727283075197,0.38418,2602.8,2602.7,0.3858]
[1727283075385,0.38418,2602.8,2602.4,1.3367]
[1727283075386,0.38421,2602.6,2602.5,0.38422]
[1727283075787,0.7724,2602.7,2602.6,0.38421]
[1727283077094,0.38421,2602.6,2602.5,0.38421]
[1727283077297,0.38422,2602.5,2602.4,0.7604]
[1727283077501,0.374,2602.6,2602.5,0.38422]
[1727283077689,0.7724,2602.7,2602.6,0.38421]
[1727283078087,3.59199,2602.8,2602.7,0.38419]
[1727283078291,0.3842,2602.7,2602.6,0.3842]
[1727283078490,2.83846758,2602.9,2602.5,3.65056]
[1727283078491,1.87804758,2602.9,2602.5,3.65056]
[1727283078694,1.87804758,2602.9,2602.7,0.38418]
[1727283078695,0.38418,2602.8,2602.7,0.38418]
[1727283079496,2.26221758,2602.9,2602.8,0.38418]
[1727283079797,1.33418,2603.0,2602.9,0.38416]
[1727283079798,2.26200758,2603.0,2602.9,0.38416]
[1727283079998,2.32583243,2603.0,2602.9,0.38416]
[1727283080187,1.56787243,2603.0,2602.9,3.07416]
[1727283080386,1.50404758,2603.1,2603.0,0.38415]
[1727283080593,1.56786834,2603.1,2603.0,0.38415]
[1727283080795,1.50699353,2603.1,2603.0,0.38415]
[1727283080994,2.00539678,2603.2,2602.9,3.65041]
[1727283080995,0.38413,2603.2,2602.9,3.65041]
[1727283081192,0.38413,2603.2,2603.1,0.38413]
[1727283081698,0.38413,2603.2,2603.1,0.38412]
[1727283081699,0.38412,2603.2,2603.1,0.38412]
[1727283081887,0.38412,2603.2,2603.1,0.77292]
[1727283082090,4.4518,2603.3,2603.2,0.38412]
[1727283082091,4.83591,2603.3,2603.2,0.38412]
[1727283082490,0.38412,2603.2,2603.1,0.3888]
[1727283082693,0.38413,2603.1,2603.0,0.7685]
[1727283082897,0.96034,2603.1,2602.9,0.38416]
[1727283083099,7.29209986,2603.3,2603.0,0.38413]
[1727283083395,3.2078,2603.2,2602.9,3.6504]
[1727283083596,0.38412,2603.2,2603.1,0.38412]
[1727283083894,6.34320986,2603.3,2603.2,0.38412]
[1727283084199,0.75791,2603.3,2603.2,0.38412]
[1727283084403,2.26520986,2603.3,2603.2,0.38412]
[1727283084602,4.01398713,2603.6,2603.2,4.22572]
[1727283084791,1.50729986,2603.7,2603.6,0.38406]
[1727283084990,1.50729986,2603.7,2603.6,3.07406]
[1727283085200,1.50729986,2604.0,2603.6,7.49096]
[1727283085495,1.50855765,2604.0,2603.9,0.38402]
[1727283086299,1.89255765,2604.0,2603.9,0.38402]
[1727283086499,1.50855765,2604.0,2603.9,0.38402]
[1727283086699,1.89256765,2604.0,2603.8,0.38402]
[1727283087395,1.50855765,2604.0,2603.9,0.38402]
[1727283088101,3.13877678,2604.2,2603.9,2.69]
[1727283088102,1.50815228,2604.1,2603.9,2.69]
[1727283088303,2.25755228,2604.2,2604.0,0.3663]
[1727283088598,0.7494,2604.2,2604.1,0.38399]
[1727283088796,5.09991228,2604.3,2604.2,0.38397]
[1727283089006,3.2078,2604.3,2604.2,0.38397]
[1727283089306,6.22302498,2604.3,2604.2,0.38397]
[1727283089694,10.06302498,2604.3,2604.2,0.38397]
[1727283090204,7.0478,2604.3,2604.2,0.76597]
[1727283090592,3.2078,2604.3,2604.2,0.76597]
[1727283090791,3.01522498,2604.4,2604.3,0.38396]
[1727283091002,0.3932,2604.5,2604.3,3.0725]
[1727283091003,0.77713,2604.5,2604.3,3.0725]
[1727283091202,0.77713,2604.5,2604.3,3.45644]
[1727283091393,0.3932,2604.5,2604.4,0.38394]
[1727283092699,2.90194527,2604.5,2604.4,0.38394]
[1727283094405,2.50874527,2604.5,2604.4,0.38394]
[1727283094605,2.50874527,2604.6,2604.5,0.38393]
[1727283094808,2.89265527,2604.6,2604.5,0.38393]
[1727283095011,0.38391,2604.6,2604.5,0.38393]
[1727283095199,2.8908323,2604.6,2604.5,0.38393]
[1727283095907,0.38392,2604.6,2604.4,0.3664]
[1727283096208,0.38393,2604.5,2604.4,0.3664]
[1727283096401,2.89015636,2604.5,2604.4,0.3664]
[1727283097004,0.38393,2604.5,2604.4,0.3664]
[1727283097804,0.44771439,2604.5,2604.4,0.3664]
[1727283098007,0.38393,2604.5,2604.4,0.3664]
[1727283098205,0.44771439,2604.5,2604.4,0.3664]
[1727283098911,0.44771439,2604.5,2604.4,0.75034]
[1727283099613,0.44771439,2604.5,2604.4,0.3664]
[1727283100111,0.38396,2604.3,2604.2,3.5898]
[1727283101408,0.38396,2604.3,2604.2,0.76597]
[1727283102115,2.36754548,2604.3,2604.2,0.382]
[1727283102303,2.16804548,2604.3,2604.2,0.382]
[1727283102711,2.10426,2604.3,2604.2,0.382]
[1727283103017,1.40765005,2604.3,2604.2,0.382]
[1727283103233,0.75484,2604.4,2604.3,0.38396]